fUSD/lending_fUSD_20240528
["ID","MTS","AMOUNT","RATE_DAILY","PERIOD"]
[328114734,1716877838708,-10000.0,0.00029973,2]
[328114735,1716877838717,-153.63993122,0.00030016,7]
[328114736,1716877838727,-160.05268881,0.00030024,7]
[328114737,1716877838736,-150.0,0.00030027,2]
[328114738,1716877838745,-2850.653658,0.000301,2]
[328114739,1716877838755,-150.0,0.00030129,2]
[328114740,1716877838764,-150.0,0.0003016,2]
[328114741,1716877838773,-597.6487957,0.00030169,7]
[328114742,1716877838783,-150.0,0.00030234,2]
[328114743,1716877838792,-166.66666668,0.00030282,7]
[328114744,1716877838801,-150.0,0.0003029,2]
[328114745,1716877838810,-167.212511,0.00030316,2]
[328114746,1716877838820,-151.24501,0.00030316,2]
[328114747,1716877838829,-741.281262,0.00030316,2]
[328114748,1716877838838,-151.0,0.00030326,2]
[328114749,1716877838847,-150.0,0.00030358,2]
[328114750,1716877838856,-155.18999445,0.00030363,4]
[328114751,1716877838865,-157.421544,0.00030411,14]
[328114752,1716877838874,-2904.23229792,0.00030416,10]
[328114753,1716877838883,-151.14619494,0.00030445,7]
[328114754,1716877838892,-830.45,0.00030454,2]
[328114755,1716877838901,-151.14619494,0.00030463,7]
[328114756,1716877838911,-597.6487957,0.00030466,7]
[328114757,1716877838921,-6508.73537972,0.00030489,10]
[328114758,1716877838930,-150.0,0.00030497,2]
[328114759,1716877838939,-150.00504777,0.00030504,7]
[328114760,1716877838948,-151.14619494,0.00030525,7]
[328114761,1716877838957,-155.80308984,0.00030545,7]
[328114762,1716877838966,-150.00504777,0.00030587,7]
[328114763,1716877838975,-150.0,0.00030624,2]
[328114764,1716877838984,-154.159753,0.00030635,7]
[328114765,1716877838994,-166.66666667,0.00030671,7]
[328114766,1716877839003,-150.0,0.00030672,2]
[328114767,1716877839012,-151.24501,0.00030686,2]
[328114768,1716877839021,-741.281262,0.00030686,2]
[328114769,1716877839031,-150.0,0.00030693,2]
[328114770,1716877839040,-151.14619494,0.00030696,7]
[328114771,1716877839049,-150.0,0.000307,2]
[328114772,1716877839059,-597.6487957,0.00030724,7]
[328114773,1716877839068,-205.93984585,0.00030802,7]
[328114774,1716877839078,-150.0,0.00030833,2]
[328114775,1716877839087,-151.14619494,0.00030836,7]
[328114776,1716877839096,-150.0,0.00030886,2]
[328114777,1716877839105,-1000.0,0.000309,2]
[328114778,1716877839115,-155.80308987,0.00030926,7]
[328114779,1716877839124,-1200.0,0.00031,2]
[328114780,1716877839134,-205.93984585,0.00031013,7]
[328114781,1716877839144,-156.37096837,0.00031022,7]
[328114782,1716877839153,-150.0,0.00031027,2]
[328114783,1716877839163,-597.6487957,0.00031044,7]
[328114784,1716877839172,-597.6487957,0.00031053,7]
[328114785,1716877839182,-150.07486739,0.00031055,7]
[328114786,1716877839191,-167.212511,0.00031055,2]
[328114787,1716877839201,-186.658458,0.00031055,2]
[328114788,1716877839210,-151.24501,0.00031055,2]
[328114789,1716877839220,-741.281262,0.00031055,2]
[328114790,1716877839229,-205.93984585,0.00031069,7]
[328114791,1716877839239,-1668.07052078,0.00031094,2]
[328114792,1716877839248,-150.00504777,0.00031135,7]
[328114793,1716877839257,-500.0,0.00031136,10]
[328114794,1716877839266,-500.0,0.00031136,10]
[328114795,1716877839275,-500.0,0.00031136,10]
[328114796,1716877839284,-1000.0,0.00031136,10]
[328114797,1716877839294,-151.31157431,0.00031173,7]
[328114798,1716877839303,-150.0,0.00031179,2]
[328114799,1716877839312,-151.31157431,0.00031185,7]
[328114800,1716877839322,-150.0,0.0003119,2]
[328114801,1716877839331,-150.07486739,0.00031218,7]
[328114802,1716877839340,-157.421544,0.00031233,14]
[328114803,1716877839350,-150.0,0.00031261,2]
[328114804,1716877839359,-150.07486739,0.00031285,7]
[328114805,1716877839369,-150.00504777,0.00031338,7]
[328114806,1716877839378,-150.07486739,0.00031347,7]
[328114807,1716877839388,-165.43186829,0.0003141,7]
[328114808,1716877839397,-150.07486739,0.00031435,7]
[328114809,1716877839407,-150.0,0.00031457,2]
[328114810,1716877839417,-205.93984585,0.00031498,7]
[328114811,1716877839427,-205.93984585,0.00031509,7]
[328114812,1716877839436,-154.12972109,0.00031518,7]
[328114813,1716877839446,-205.93984585,0.00031523,7]
[328114814,1716877839455,-151.14619494,0.00031546,7]
[328114815,1716877839465,-150.0,0.00031579,2]
[328114816,1716877839475,-597.6487957,0.00031589,7]
[328114817,1716877839484,-150.00504777,0.00031617,7]
[328114818,1716877839494,-150.0,0.0003162,2]
[328114819,1716877839504,-155.58128738,0.00031624,7]
[328114820,1716877839514,-205.93984585,0.00031634,7]
[328114821,1716877839524,-205.93984585,0.00031683,7]
[328114822,1716877839534,-1000.0,0.00031684,10]
[328114823,1716877839544,-150.0,0.00031684,2]
[328114824,1716877839554,-158.13283358,0.00031726,7]
[328114825,1716877839564,-150.0,0.00031734,2]
[328114826,1716877839573,-150.00504777,0.0003178,7]
[328114827,1716877839582,-150.0,0.00031785,2]
[328114828,1716877839596,-150.0,0.00031787,2]
[328114829,1716877839605,-150.0,0.00031796,2]
[328114830,1716877839615,-151.14619494,0.000318,7]
[328114831,1716877839624,-150.0,0.00031808,2]
[328114832,1716877839634,-150.0,0.00031827,2]
[328114833,1716877839644,-150.0,0.00031829,2]
[328114834,1716877839653,-150.0,0.00031841,2]
[328114835,1716877839665,-151.3115744,0.00031848,7]
[328114836,1716877839676,-597.6487957,0.00031853,7]
[328114837,1716877839687,-151.14619494,0.00031881,7]
[328114838,1716877839696,-205.93984585,0.00031885,7]
[328114839,1716877839706,-1750.91654115,0.000319,11]
[328114840,1716877839716,-10075.65734251,0.000319,2]
[328114841,1716877839726,-719.7837492,0.00031918,2]
[328114842,1716877839735,-1851.59404625,0.00031918,2]
[328114843,1716877839744,-398.89486778,0.00031918,2]
[328114844,1716877839754,-150.0,0.00031929,2]
[328114845,1716877839763,-597.6487957,0.00031935,7]
[328114846,1716877839773,-2398.0,0.00031941,2]
[328114847,1716877839782,-445.0,0.00031941,2]
[328114848,1716877839791,-164.0,0.00031941,2]
[328114849,1716877839800,-808.0,0.00031941,2]
[328114850,1716877839810,-216.0,0.00031941,2]
[328114851,1716877839819,-1127.0,0.00031941,2]
[328114852,1716877839828,-1651.0,0.00031941,2]
[328114853,1716877839837,-3166.0,0.00031941,2]
[328114854,1716877839846,-1062.0,0.00031941,2]
[328114855,1716877839856,-37944.0,0.00031941,2]
[328114856,1716877839865,-2211.252,0.00031941,2]
[328114857,1716877839874,-325.861,0.00031941,2]
[328114858,1716877839883,-977.37,0.00031941,2]
[328114859,1716877839892,-5766.0,0.00031941,2]
[328114860,1716877839902,-1467.0,0.00031941,2]
[328114861,1716877839912,-1645.0,0.00031941,2]
[328114862,1716877839921,-170.25355802,0.0003199,2]
[328114863,1716877839930,-46194.58180026,0.00031997,2]
[328114864,1716877839939,-837020.27842359,0.00032,5]
[328114865,1716877840042,-597.4,0.00032,5]
[328114866,1716877841084,-10000.0,0.00029973,2]
[328114867,1716877841093,-1225.0,0.00031941,2]
[328114868,1716877841103,-141992.90948968,0.00032,5]
[328114869,1716877841115,-2172.75228679,0.00032,5]
[328114870,1716877841127,-44504.5693361,0.00032,5]
[328114871,1716877841138,-90196.03257107,0.00032,5]
[328114872,1716877841149,-51400.01838199,0.00032,5]
[328114873,1716877841161,-53899.37971084,0.00032,5]
[328114874,1716877841280,-40977.98371255,0.00032,5]
[328114875,1716877841292,-5537.633729,0.00032,5]
[328114876,1716877843547,-1265.0,0.00031941,2]
[328114878,1716877843557,-12387.15197923,0.00032,5]
[328114887,1716877843858,-459.82893478,0.00029972,2]
[328114888,1716877843868,-751.61833958,0.00029972,2]
[328114889,1716877843878,-4054.98615186,0.00032,5]
[328114892,1716877844485,-13525.6,0.00032,5]
[328114904,1716877844589,-9.78202097,0.00032,5]
[328114906,1716877844604,-1425687.6942683,0.00032,5]
[328114909,1716877844615,-9640.39034475,0.00032,5]
[328114911,1716877844626,-674.44,0.00032,5]
[328114913,1716877844638,-679000.00000013,0.00032,5]
[328115068,1716877846109,-1211.45319428,0.00017259,2]
[328115088,1716877846302,-2473.52596692,0.00017259,2]
[328115090,1716877846311,-445.9409421,0.000235,2]
[328115092,1716877846321,-234.48123736,0.00029972,2]
[328115094,1716877846331,-614.0,0.00031941,2]
[328115096,1716877846340,-82050.0354483,0.00032,5]
[328115098,1716877846352,-679.44,0.00032,5]
[328115101,1716877846363,-1088.57643317,0.00032,5]
[328115116,1716877846490,-493.706,0.00032,5]
[328115150,1716878036754,9363.55051866,9e-05,2]
[328115151,1716878052996,13106.80311711,0.00011,2]
[328115152,1716878071304,15803.36973343,6.94e-05,2]
[328115153,1716878081546,-155.0,0.00011798,2]
[328115154,1716878081568,-252.7560391,0.00011799,2]
[328115155,1716878081591,-7524.9148836,0.00011799,2]
[328115156,1716878081618,-136012.69278013,0.000118,2]
[328115157,1716878081642,-751.61833958,0.00012999,2]
[328115158,1716878081668,-35410.83990525,0.00012999,2]
[328115159,1716878081695,-3076039.57955234,0.00013,2]
[328115160,1716878097730,616.18,0.00010959,2]
[328115161,1716878155998,205.0,9.8e-05,2]
[328115162,1716878160258,243.24085418,0.000101,2]
[328115163,1716878195314,9205.01882061,0.0001,2]
[328115165,1716878233654,209.46430044,0.0001,2]
[328115169,1716878686158,500.0,0.0001,2]
[328115170,1716878686406,500.0,0.0001,2]
[328115171,1716878686785,500.0,0.0001,2]
[328115172,1716878687220,500.0,0.0001,2]
[328115173,1716878687596,500.0,0.0001,2]
[328115174,1716878687982,500.0,0.0001,2]
[328115175,1716878688349,500.0,0.0001,2]
[328115176,1716878688704,600.0,0.0001,2]
[328115178,1716878840995,300.0,0.000122,4]
[328115179,1716878843099,600.0,0.000123,4]
[328115180,1716878845209,900.0,0.000124,4]
[328115181,1716878847298,1300.0,0.000125,4]
[328115182,1716878849389,1600.0,0.000126,4]
[328115183,1716878850117,-242.14296341,0.00011591,2]
[328115185,1716878851487,300.0,0.000127,4]
[328115186,1716878853587,300.0,0.000128,4]
[328115187,1716878855714,300.0,0.000129,4]
[328115189,1716878976812,162.14362647,0.00011498,2]
[328115194,1716879032363,-450.47252925,0.00011597,2]
[328115195,1716879032375,-166.59804871,0.00011597,2]
[328115196,1716879032386,-339.90172271,0.00011598,2]
[328115197,1716879032396,-263.32579252,0.0001167,2]
[328115198,1716879032406,-150.0,0.00011671,2]
[328115199,1716879032415,-2365.4678549,0.00011698,2]
[328115200,1716879032425,-656.19159187,0.00011699,2]
[328115201,1716879032434,-515.43,0.000121,2]
[328115202,1716879032443,-339.90172269,0.00012248,2]
[328115203,1716879032452,-287.93269941,0.000125,2]
[328115204,1716879032462,-502.12928309,0.00012593,2]
[328115205,1716879032474,-497.87071691,0.00012593,2]
[328115206,1716879032483,-252.6159296,0.00012869,2]
[328115207,1716879032493,-339.90172269,0.00012898,2]
[328115208,1716879032503,-150.0,0.00012899,2]
[328115209,1716879032512,-694.84389389,0.000129,2]
[328115210,1716879032524,-1757.21922737,0.000129,2]
[328115211,1716879032536,-884.0779203,0.000129,2]
[328115212,1716879032546,-323.73107518,0.000129,2]
[328115213,1716879032555,-1234.39603084,0.000129,2]
[328115214,1716879032565,-265.92991184,0.00012914,2]
[328115215,1716879032575,-265.92991184,0.00012928,2]
[328115216,1716879032585,-215.77022936,0.00012989,2]
[328115217,1716879032597,-2641.30225064,0.00012989,2]
[328115218,1716879032606,-157.48,0.0001299,2]
[328115220,1716879032615,-35116.81913272,0.00012997,2]
[328115221,1716879032627,-493.36047548,0.00012997,2]
[328115222,1716879032640,-474.37904849,0.00012997,2]
[328115223,1716879032651,-1026.39824093,0.00012997,2]
[328115224,1716879032670,-679.4788,0.00012997,2]
[328115225,1716879032686,-1723.49402903,0.00012997,2]
[328115226,1716879032698,-484.55762474,0.00012997,2]
[328115227,1716879032710,-558.52015982,0.00012997,2]
[328115228,1716879032722,-517.3226,0.00012997,2]
[328115229,1716879032734,-3797.9920658,0.00012997,2]
[328115230,1716879032748,-75303.9617196,0.00012997,2]
[328115231,1716879032760,-4129.85330066,0.00012997,2]
[328115232,1716879032772,-6189.19122061,0.00012997,2]
[328115233,1716879032783,-1694.67418651,0.00012997,2]
[328115235,1716879038319,-19326.89368427,0.00012997,2]
[328115237,1716879038565,-28541.69495038,0.00012997,2]
[328115238,1716879038574,-784.50568424,0.00012998,2]
[328115240,1716879038584,-35394.24475189,0.00012998,2]
[328115242,1716879038594,-1387.54680365,0.00012998,2]
[328115243,1716879038604,-28740.42032772,0.00012999,2]
[328115244,1716879038614,-155.0,0.00012999,2]
[328115245,1716879038624,-157.90877204,0.00012999,2]
[328115246,1716879038634,-657.26693931,0.00012999,2]
[328115247,1716879038644,-155.0,0.00012999,2]
[328115248,1716879038654,-5289.87340278,0.00012999,2]
[328115249,1716879038663,-102728.45577415,0.00013,2]
[328115250,1716879038676,-445.41221697,0.00013,2]
[328115251,1716879038688,-10228.15692408,0.00013,2]
[328115294,1716879041316,-64007.87803195,0.00013,2]
[328115295,1716879041385,-1.373e-05,0.00013,2]
[328115296,1716879042012,-324.26292933,0.00013,2]
[328115358,1716879046323,-678.59343715,0.00013,2]
[328115359,1716879046585,-4943.94612842,0.00013,2]
[328115384,1716880232563,-263.32579252,0.00012737,2]
[328115387,1716880232573,-674.88700233,0.00012738,2]
[328115395,1716880232779,-325.11299767,0.00012738,2]
[328115396,1716880232789,-442.27075883,0.0001274,2]
[328115397,1716880232801,-2164.48074212,0.0001274,2]
[328115398,1716880232811,-1210.24851609,0.00012898,2]
[328115399,1716880232821,-2392.28398861,0.000129,2]
[328115400,1716880232831,-265.92991186,0.000129,2]
[328115401,1716880232840,-202.37344722,0.000129,2]
[328115402,1716880232851,-309.31744613,0.00012933,2]
[328115403,1716880232861,-200.0,0.00012935,2]
[328115404,1716880232870,-2238.00908437,0.00012999,2]
[328115405,1716880232880,-22139.05279661,0.00013,2]
[328115406,1716880232891,-3223.14669934,0.00013,2]
[328115407,1716880232903,-451.92492773,0.00013,2]
[328115408,1716880232914,-28701.4958251,0.00013,2]
[328115409,1716880232927,-4574.59801111,0.00013,2]
[328115410,1716880232938,-322.91174239,0.00013,2]
[328115411,1716880232980,-624.91528117,0.00013,2]
[328115414,1716880232992,-24954.83073575,0.00013,2]
[328115415,1716880233003,-7490.27825969,0.00013,2]
[328115416,1716880233014,-776.61022031,0.00013,2]
[328115417,1716880233025,-1206.34968912,0.00013,2]
[328115418,1716880238424,-2468.79206166,0.000129,2]
[328115419,1716880238435,-1413.5699769,0.00013,2]
[328115420,1716880238446,-1003.64989593,0.00013,2]
[328115421,1716880238459,-1021.95449019,0.00013,2]
[328115426,1716880238621,-1620.30552261,0.00013,2]
[328115427,1716880238633,-383.54680447,0.00013,2]
[328115428,1716880238643,-293686.23121039,0.00013,2]
[328115429,1716880238827,-1235.9041344,0.00013,2]
[328115434,1716880241794,-773.13255234,0.00013,2]
[328115435,1716880241806,-540.39,0.00013,2]
[328115436,1716880242818,-1372.44874178,0.00013,2]
[328115437,1716880242830,-2560.0,0.00013,2]
[328115438,1716880243056,-897.93874911,0.00013,2]
[328115445,1716880243502,-3456.52608022,0.00013,2]
[328115447,1716880243515,-362.62877099,0.00013,2]
[328115450,1716880244713,-660.64267116,0.0001235,2]
[328115451,1716880244724,-1515.79955668,0.00012999,2]
[328115465,1716880245198,-1177.06426031,0.00012999,2]
[328115466,1716880245215,-211.5927684,0.00012999,2]
[328115467,1716880245225,-407.51180602,0.00013,2]
[328115468,1716880245237,-682.30288452,0.00013,2]
[328115469,1716880245249,-1996.88121428,0.00013,2]
[328115470,1716880245261,-17290.2228408,0.00013,2]
[328115471,1716880245273,-986.50186717,0.00013,2]
[328115472,1716880245288,-969765.85727068,0.00013,2]
[328115473,1716880246765,-104864.36015549,0.00013,2]
[328115474,1716880246777,-1838.86160494,0.00013,2]
[328115475,1716880246788,-36924.99999904,0.00013,2]
[328115476,1716880246992,-7121.5,0.00013,2]
[328115486,1716881061606,-155.0,0.0001261,2]
[328115487,1716881061629,-1000.0,0.00012611,2]
[328115488,1716881061657,-263.32579252,0.00012611,2]
[328115489,1716881061680,-10952.16001412,0.00012611,2]
[328115490,1716881061704,-1299.42409849,0.00012612,2]
[328115491,1716881061730,-3983.59009487,0.00012617,2]
[328115492,1716881094962,-3807.1477836,0.00012345,2]
[328115493,1716881094986,-895.94231786,0.00012346,2]
[328115494,1716881095011,-402.469679,0.00012553,2]
[328115495,1716881095036,-15533.77633347,0.00012617,2]
[328115496,1716881095059,-2422.86388607,0.00012639,2]
[328115517,1716881431833,-263.32579252,0.00012372,2]
[328115518,1716881431843,-423.96701383,0.00012373,2]
[328115519,1716881431853,-687.1486291,0.00012374,2]
[328115520,1716881431862,-534.80668639,0.00012384,2]
[328115521,1716881431871,-1777.37762751,0.00012386,2]
[328115522,1716881432065,-830.0220449,0.00012386,2]
[328115523,1716881432074,-13286.00331393,0.00012639,2]
[328115524,1716881432084,-45599.80179937,0.00012639,2]
[328115525,1716881432095,-42160.59764581,0.00012639,2]
[328115526,1716881432220,-2025.59405055,0.00012639,2]
[328115527,1716881432231,-2796.90567683,0.00012639,2]
[328115528,1716881432242,-1104.69770692,0.00012639,2]
[328115536,1716881439685,-116595.43882054,0.00012639,2]
[328115537,1716881439695,-19746.92863178,0.00012639,2]
[328115538,1716881439704,-279.9268,0.00012898,2]
[328115539,1716881439714,-9036.4445,0.00012898,2]
[328115540,1716881439725,-2192.92698966,0.000129,2]
[328115541,1716881439734,-1418.24808485,0.000129,2]
[328115542,1716881439744,-1164.63,0.000129,2]
[328115543,1716881439758,-321.57524563,0.000129,2]
[328115544,1716881439768,-366.93,0.000129,2]
[328115545,1716881439777,-262.8951892,0.000129,2]
[328115546,1716881439787,-222.08939345,0.00012996,2]
[328115547,1716881439796,-544.92979362,0.00012996,2]
[328115548,1716881439806,-269.429838,0.00012996,2]
[328115549,1716881439815,-886.86936652,0.00012996,2]
[328115550,1716881439825,-160.40552983,0.00012996,2]
[328115551,1716881439837,-1000.0,0.00012996,2]
[328115552,1716881439846,-168.09348765,0.00012996,2]
[328115553,1716881439856,-666.52923316,0.00012996,2]
[328115554,1716881439865,-157.93299216,0.00012996,2]
[328115555,1716881439874,-155.0,0.00012996,2]
[328115556,1716881439884,-155.0,0.00012996,2]
[328115557,1716881439893,-155.26740945,0.00012996,2]
[328115558,1716881439902,-155.0,0.00012996,2]
[328115559,1716881439912,-529.39391073,0.00012996,2]
[328115560,1716881439921,-163.8,0.00012996,2]
[328115561,1716881439932,-428.66255048,0.00012997,2]
[328115562,1716881439941,-647.78381543,0.00012997,2]
[328115563,1716881439950,-3058.14,0.00012997,2]
[328115564,1716881439959,-5580.98,0.00012997,2]
[328115565,1716881439969,-109868.72029851,0.00012998,2]
[328115566,1716881439980,-2111.08,0.00012998,2]
[328115567,1716881439989,-150.99,0.00012998,2]
[328115568,1716881439998,-1664.95,0.00012998,2]
[328115569,1716881440007,-452482.31961602,0.00013,2]
[328115572,1716881440220,-2829.41991002,0.00013,2]
[328115574,1716881440239,-1478.26174416,0.00013,2]
[328115575,1716881440252,-293686.23121039,0.00013,2]
[328115576,1716881440265,-2298.34491096,0.00013,2]
[328115577,1716881440292,-830.9999995,0.00013,2]
[328115578,1716881440304,-331.99999996,0.00013,2]
[328115579,1716881440821,-999.10610789,0.00013,2]
[328115580,1716881440837,-580.76486239,0.00013,2]
[328115581,1716881441828,-262.89518916,0.000129,2]
[328115582,1716881441839,-1527.42271074,0.00013,2]
[328115583,1716881441850,-85006.40534971,0.00013,2]
[328115584,1716881441861,-1254.20220342,0.00013,2]
[328115585,1716881441873,-3364.15696614,0.00013,2]
[328115598,1716881442820,-1309.3021398,0.00013,2]
[328115601,1716881442832,-271.23280778,0.00013,2]
[328115602,1716881442843,-475.67259041,0.00013,2]
[328115603,1716881442855,-3198.06694715,0.00013,2]
[328115604,1716881443065,-3020.97983753,0.00013,2]
[328115605,1716881443077,-1668.02297108,0.00013,2]
[328115606,1716881443088,-3972.09929284,0.00013,2]
[328115607,1716881443099,-4422.31877802,0.00013,2]
[328115608,1716881443111,-2416.55636085,0.00013,2]
[328115609,1716881443122,-17260.78085376,0.00013,2]
[328115610,1716881443133,-6823.92403971,0.00013,2]
[328115611,1716881443145,-967.37861202,0.00013,2]
[328115612,1716881443157,-486.91192548,0.00013,2]
[328115613,1716881443168,-40289.17925678,0.00013,2]
[328115614,1716881443320,-104824.71050316,0.00013,2]
[328115615,1716881443331,-663.6494002,0.00013,2]
[328115616,1716881443343,-3033.69858913,0.00013,2]
[328115617,1716881443354,-965000.00000822,0.00013,2]
[328115620,1716881445803,-389.5924381,0.00011699,2]
[328115621,1716881445812,-391.87395304,0.0001228,2]
[328115622,1716881445826,-2340.93003738,0.0001228,2]
[328115623,1716881445839,-2244.49613387,0.0001228,2]
[328115625,1716881445850,-619.76020313,0.0001228,2]
[328115628,1716881445862,-1145.62207892,0.0001228,2]
[328115629,1716881445873,-397.47369366,0.0001228,2]
[328115630,1716881445883,-263.32579252,0.00012899,2]
[328115631,1716881445893,-30122.21213818,0.00013,2]
[328115632,1716881445904,-55714.13043162,0.00013,2]
[328115633,1716881445916,-348.5255592,0.00013,2]
[328115634,1716881446052,-37960.98654066,0.00013,2]
[328115635,1716881446064,-16959.0331764,0.00013,2]
[328115636,1716881446075,-9095.0453656,0.00013,2]
[328115637,1716881446088,-441.49309544,0.00013,2]
[328115638,1716881446099,-508.5,0.00013,2]
[328115639,1716881446111,-6718.84618597,0.00013,2]
[328115640,1716881446123,-8340.80138995,0.00013,2]
[328115641,1716881446134,-10462.89910724,0.00013,2]
[328115642,1716881446145,-257.97639549,0.00013,2]
[328115643,1716881446392,-262.89518916,0.000129,2]
[328115644,1716881446403,-149.34320222,0.00013,2]
[328115653,1716881652241,4634.09688289,0.00011,2]
[328115654,1716881743046,-234.55467578,0.00012532,2]
[328115655,1716881743070,-155.0,0.00012532,2]
[328115656,1716881743092,-263.32579252,0.00012533,2]
[328115657,1716881743115,-358.5807,0.00012539,2]
[328115658,1716881743138,-694.9488,0.00012738,2]
[328115659,1716881743160,-2293.5900317,0.0001274,2]
[328115660,1716881816233,537.19114104,9.555e-05,2]
[328115661,1716881860406,19746.92863178,9.555e-05,2]
[328115664,1716881882395,17435.88636475,9.555e-05,2]
[328115675,1716882450180,-242.14432747,0.00012484,2]
[328115683,1716882631880,-263.32579252,0.00012233,2]
[328115684,1716882631890,-426.04225252,0.00012234,2]
[328115685,1716882631901,-2181.35741989,0.00012234,2]
[328115686,1716882631910,-8.04258011,0.0001274,2]
[328115687,1716882631990,-353.90515708,0.0001274,2]
[328115688,1716882631999,-388.96440317,0.0001274,2]
[328115689,1716882632009,-201.81559419,0.00012869,2]
[328115690,1716882632018,-3000.0,0.0001287,2]
[328115691,1716882632027,-2010.1830738,0.000129,2]
[328115692,1716882632035,-1905.99012144,0.000129,2]
[328115693,1716882632044,-2468.79206166,0.000129,2]
[328115695,1716882632054,-2079.2115,0.000129,2]
[328115697,1716882632062,-207.74529716,0.00012998,2]
[328115699,1716882632071,-155.26311913,0.00012998,2]
[328115700,1716882632081,-155.18912475,0.00012998,2]
[328115701,1716882632090,-288.4871,0.00012998,2]
[328115702,1716882632101,-155.28587693,0.00012998,2]
[328115703,1716882632117,-162.76290291,0.00012998,2]
[328115704,1716882632126,-188.89898739,0.00012998,2]
[328115705,1716882632135,-155.0,0.00012998,2]
[328115706,1716882632145,-156.29702905,0.00012998,2]
[328115707,1716882632154,-234.68865135,0.00012998,2]
[328115708,1716882632163,-155.35331114,0.00012998,2]
[328115709,1716882632172,-686.23344584,0.00012999,2]
[328115710,1716882632183,-208.41844521,0.00012999,2]
[328115711,1716882632192,-1649.05656759,0.00012999,2]
[328115712,1716882632202,-1586.52814662,0.00012999,2]
[328115713,1716882632228,-10990.2234505,0.00013,2]
[328115714,1716882632275,-1357.83648,0.00013,2]
[328115715,1716882632312,-204091.92336371,0.00013,2]
[328115716,1716882632347,-397.08384421,0.00013,2]
[328115725,1716882637744,-211.07781034,0.00012999,2]
[328115726,1716882637754,-793.26407331,0.00012999,2]
[328115727,1716882637764,-292681.88932674,0.00013,2]
[328115728,1716882637796,-6746.59999998,0.00013,2]
[328115729,1716882637852,-15887.8,0.00013,2]
[328115730,1716882638017,-253.45188859,0.00013,2]
[328115751,1716882640290,-690.4365815,0.00013,2]
[328115752,1716882640350,-1597.7821369,0.00013,2]
[328115753,1716882640408,-313.46608572,0.00013,2]
[328115754,1716882641115,-272.12555121,0.00013,2]
[328115755,1716882641126,-3705.82028213,0.00013,2]
[328115756,1716882641136,-1358.13744614,0.00013,2]
[328115757,1716882641172,-134164.06335628,0.00013,2]
[328115774,1716882642914,-396.63203666,0.00012999,2]
[328115775,1716882642924,-10103.68146332,0.00013,2]
[328115776,1716882642935,-12013.80990003,0.00013,2]
[328115777,1716882643058,-130641.05142869,0.00013,2]
[328115778,1716882643069,-13236.19455999,0.00013,2]
[328116027,1716882645845,-311.86512633,0.00012234,2]
[328116028,1716882645854,-1036.8100533,0.00013,2]
[328116029,1716882645903,-966.91817453,0.00013,2]
[328116030,1716882645928,-1000.0,0.00013,2]
[328116038,1716882646015,-542.6,0.00013,2]
[328116051,1716882646135,-263.32579252,0.00012999,2]
[328116054,1716882646146,-415.40225748,0.00013,2]
[328116181,1716882684188,2550.07792439,9.75e-05,2]
[328116182,1716882704618,2126.70292675,9.75e-05,2]
[328116193,1716883790905,-784.71344393,0.00012195,2]
[328116194,1716883790926,-344.9320909,0.00012196,2]
[328116195,1716883790947,-2365.4678549,0.00012196,2]
[328116196,1716883790968,-19517.36642834,0.00012197,2]
[328116197,1716883790989,-2606.75150095,0.00012234,2]
[328116198,1716883791009,-23096.5265,0.000129,2]
[328116199,1716883791030,-1842.66781765,0.000129,2]
[328116200,1716883791051,-11358.88170278,0.000129,2]
[328116201,1716883791072,-11286.69266055,0.000129,2]
[328116203,1716883832026,-2818.03696467,0.000129,2]
[328116204,1716883832038,-450.0,0.000129,2]
[328116205,1716883832051,-809.27,0.000129,2]
[328116206,1716883832095,-6322.37491987,0.000129,2]
[328116207,1716883832264,-345.96,0.000129,2]
[328116208,1716883832324,-678.1775,0.000129,2]
[328116209,1716883832335,-4676.78085114,0.000129,2]